fUST/lending_fUST_20240812
["ID","MTS","AMOUNT","RATE_DAILY","PERIOD"]
[334675035,1723463439213,-627.91553653,0.00016693,2]
[334675036,1723463439252,-159.17808647,0.00016693,2]
[334675037,1723463439261,-787.093623,0.00016693,2]
[334675038,1723463439270,-787.093623,0.00017259,2]
[334675039,1723463439280,-787.093623,0.00017259,2]
[334675040,1723463439289,-223.32245684,0.00017379,2]
[334675041,1723463439298,-787.093623,0.00018619,2]
[334675042,1723463439307,-787.093623,0.00018619,2]
[334675043,1723463439317,-529.78287742,0.0001872,2]
[334675044,1723463439327,-787.093623,0.00018899,2]
[334675045,1723463439336,-787.093623,0.00018999,2]
[334675046,1723463439345,-2436.11411614,0.00019177,2]
[334675047,1723463439382,-6401.98845439,0.00019177,2]
[334675048,1723463439393,-787.093623,0.00019451,2]
[334675049,1723463439404,-1610.56614984,0.00019451,2]
[334675050,1723463439414,-984.59231322,0.00019477,2]
[334675051,1723463439423,-1000.0,0.00019479,2]
[334675052,1723463439432,-150.112233,0.000195,2]
[334675053,1723463439441,-1000.0,0.00019506,2]
[334675054,1723463439452,-677.28546657,0.00019508,2]
[334675055,1723463439463,-42383.12825852,0.00019508,2]
[334675056,1723463439473,-42383.12825852,0.00019508,2]
[334675057,1723463439482,-269.65614473,0.00019509,7]
[334675058,1723463439491,-151.0,0.00019532,2]
[334675059,1723463439500,-776.747105,0.00019532,2]
[334675060,1723463439511,-151.0,0.00019532,2]
[334675061,1723463439521,-151.0,0.00019532,2]
[334675062,1723463439532,-276.877716,0.00019532,2]
[334675063,1723463439544,-276.877716,0.00019532,2]
[334675064,1723463439554,-1000.0,0.00019534,2]
[334675065,1723463439564,-153.098448,0.00019547,2]
[334675066,1723463439574,-245.151344,0.00019547,2]
[334675067,1723463439584,-245.151344,0.00019547,2]
[334675068,1723463439595,-1703.818599,0.00019547,2]
[334675069,1723463439607,-1703.818599,0.00019547,2]
[334675070,1723463439618,-850.02521278,0.00019547,2]
[334675071,1723463439628,-1000.0,0.00019561,2]
[334675072,1723463439637,-1000.0,0.00019589,2]
[334675073,1723463439647,-3060.59,0.000196,2]
[334675074,1723463439657,-1000.0,0.00019616,2]
[334675075,1723463439666,-1000.0,0.00019643,2]
[334675076,1723463439675,-1000.0,0.00019671,2]
[334675077,1723463439685,-4207.40762999,0.0001969,2]
[334675078,1723463439694,-1000.0,0.00019698,2]
[334675079,1723463439703,-1000.0,0.00019726,2]
[334675080,1723463439713,-1000.0,0.00019753,2]
[334675081,1723463439722,-151.90208823,0.0001978,2]
[334675082,1723463439732,-377.30891,0.0001978,2]
[334675083,1723463439742,-377.30891,0.0001978,2]
[334675084,1723463439751,-151.0,0.0001978,2]
[334675085,1723463439760,-151.0,0.0001978,2]
[334675086,1723463439770,-245.151344,0.0001978,2]
[334675087,1723463439779,-245.151344,0.0001978,2]
[334675088,1723463439788,-276.877716,0.0001978,2]
[334675089,1723463439796,-276.877716,0.0001978,2]
[334675090,1723463439806,-1703.818599,0.0001978,2]
[334675091,1723463439819,-1703.818599,0.0001978,2]
[334675092,1723463439828,-1000.0,0.0001978,2]
[334675093,1723463439838,-152.797487,0.0001979,2]
[334675094,1723463439847,-151.0,0.0001979,2]
[334675095,1723463439856,-151.0,0.0001979,2]
[334675096,1723463439865,-341.109259,0.0001979,2]
[334675097,1723463439875,-228.057054,0.0001979,2]
[334675098,1723463439884,-228.057054,0.0001979,2]
[334675099,1723463439893,-341.109259,0.0001979,2]
[334675100,1723463439903,-287.283186,0.0001979,2]
[334675101,1723463439913,-776.747105,0.0001979,2]
[334675102,1723463439922,-151.0,0.0001979,2]
[334675104,1723463439932,-181.915356,0.0001979,2]
[334675105,1723463439941,-181.915356,0.0001979,2]
[334675106,1723463439950,-478.119438,0.0001979,2]
[334675107,1723463439959,-478.119438,0.0001979,2]
[334675109,1723463439968,-151.0,0.0001979,2]
[334675110,1723463439983,-151.0,0.0001979,2]
[334675111,1723463440000,-151.72358,0.0001979,2]
[334675112,1723463440016,-151.0,0.0001979,2]
[334675113,1723463440028,-151.0,0.0001979,2]
[334675114,1723463440040,-151.0,0.0001979,2]
[334675115,1723463440053,-787.093623,0.0001979,2]
[334675116,1723463440067,-23695.37289149,0.000198,2]
[334675117,1723463440081,-151.0,0.000198,2]
[334675118,1723463440095,-151.0,0.000198,2]
[334675119,1723463440107,-151.0,0.000198,2]
[334675120,1723463440121,-181.915356,0.000198,2]
[334675121,1723463440133,-181.915356,0.000198,2]
[334675122,1723463440146,-151.0,0.000198,2]
[334675123,1723463440164,-151.0,0.000198,2]
[334675124,1723463440177,-151.0,0.000198,2]
[334675126,1723463440193,-151.0,0.000198,2]
[334675127,1723463440205,-151.0,0.000198,2]
[334675128,1723463440217,-298.033078,0.000198,2]
[334675129,1723463440228,-276.877716,0.000198,2]
[334675131,1723463440242,-895.85,0.000198,2]
[334675132,1723463440254,-276.877716,0.000198,2]
[334675133,1723463440268,-1000.0,0.00019808,2]
[334675134,1723463440281,-1104.50102556,0.00019835,2]
[334675135,1723463440294,-377.30891,0.0001989,2]
[334675136,1723463440307,-377.30891,0.0001989,2]
[334675137,1723463440321,-151.0,0.0001989,2]
[334675138,1723463440336,-245.151344,0.0001989,2]
[334675139,1723463440347,-245.151344,0.0001989,2]
[334675140,1723463440358,-276.877716,0.0001989,2]
[334675141,1723463440369,-276.877716,0.0001989,2]
[334675142,1723463440380,-1703.818599,0.0001989,2]
[334675144,1723463440393,-1703.818599,0.0001989,2]
[334675145,1723463440407,-787.093623,0.0001989,2]
[334675146,1723463440420,-88888.0,0.0001989,2]
[334675147,1723463440431,-150.112233,0.000199,2]
[334675148,1723463440444,-1346.58063576,0.000199,2]
[334675149,1723463440456,-151.822681,0.0001999,2]
[334675150,1723463440469,-151.0,0.0001999,2]
[334675151,1723463440480,-151.0,0.0001999,2]
[334675152,1723463440492,-151.0,0.0001999,2]
[334675153,1723463440503,-892.598025,0.0001999,2]
[334675154,1723463440515,-892.598025,0.0001999,2]
[334675155,1723463440526,-151.0,0.0001999,2]
[334675156,1723463440537,-171.272307,0.0001999,2]
[334675157,1723463440550,-151.0,0.0001999,2]
[334675159,1723463440561,-151.0,0.0001999,2]
[334675161,1723463440573,-341.109259,0.0001999,2]
[334675162,1723463440585,-341.109259,0.0001999,2]
[334675163,1723463440597,-228.057054,0.0001999,2]
[334675164,1723463440608,-228.057054,0.0001999,2]
[334675165,1723463440620,-341.109259,0.0001999,2]
[334675166,1723463440631,-341.109259,0.0001999,2]
[334675167,1723463440644,-517.205068,0.0001999,2]
[334675168,1723463440655,-517.205068,0.0001999,2]
[334675169,1723463440667,-776.747105,0.0001999,2]
[334675171,1723463440679,-776.747105,0.0001999,2]
[334675173,1723463440691,-776.747105,0.0001999,2]
[334675175,1723463440702,-156.180285,0.0001999,2]
[334675176,1723463440716,-151.0,0.0001999,2]
[334675177,1723463440729,-151.0,0.0001999,2]
[334675178,1723463440739,-181.915356,0.0001999,2]
[334675179,1723463440751,-181.915356,0.0001999,2]
[334675180,1723463440763,-478.119438,0.0001999,2]
[334675181,1723463440775,-478.119438,0.0001999,2]
[334675182,1723463440787,-478.119438,0.0001999,2]
[334675183,1723463440799,-478.119438,0.0001999,2]
[334675184,1723463440813,-151.0,0.0001999,2]
[334675185,1723463440825,-151.0,0.0001999,2]
[334675186,1723463440837,-151.0,0.0001999,2]
[334675187,1723463440848,-151.0,0.0001999,2]
[334675188,1723463440860,-377.30891,0.0001999,2]
[334675189,1723463440871,-377.30891,0.0001999,2]
[334675190,1723463440883,-377.30891,0.0001999,2]
[334675191,1723463440898,-377.30891,0.0001999,2]
[334675192,1723463440911,-151.0,0.0001999,2]
[334675193,1723463440924,-245.151344,0.0001999,2]
[334675194,1723463440936,-245.151344,0.0001999,2]
[334675195,1723463440949,-276.877716,0.0001999,2]
[334675196,1723463440961,-276.877716,0.0001999,2]
[334675197,1723463440973,-1703.818599,0.0001999,2]
[334675198,1723463440985,-1703.818599,0.0001999,2]
[334675199,1723463440997,-155.17587331,0.00019999,2]
[334675200,1723463441011,-9539.75090999,0.0002,2]
[334675201,1723463441024,-1824.367963,0.0002,2]
[334675202,1723463441036,-1000.0,0.0002,20]
[334675203,1723463441049,-151.0,0.0002,2]
[334675204,1723463441061,-5322.29976103,0.0002,2]
[334675205,1723463441072,-151.0,0.0002,2]
[334675206,1723463441084,-34082.63590581,0.0002,2]
[334675207,1723463441096,-151.0,0.0002,2]
[334675208,1723463441108,-151.0,0.0002,2]
[334675209,1723463441121,-151.0,0.0002,2]
[334675210,1723463441133,-151.0,0.0002,2]
[334675211,1723463441146,-157.855426,0.0002,2]
[334675212,1723463441158,-151.0,0.0002,2]
[334675213,1723463441169,-151.0,0.0002,2]
[334675214,1723463441180,-151.0,0.0002,2]
[334675215,1723463441192,-892.598025,0.0002,2]
[334675216,1723463441203,-892.598025,0.0002,2]
[334675217,1723463441215,-215.628418,0.0002,2]
[334675218,1723463441227,-151.0,0.0002,2]
[334675219,1723463441239,-341.109259,0.0002,2]
[334675220,1723463441252,-228.057054,0.0002,2]
[334675221,1723463441265,-228.057054,0.0002,2]
[334675222,1723463441277,-228.057054,0.0002,2]
[334675223,1723463441288,-228.057054,0.0002,2]
[334675224,1723463441300,-341.109259,0.0002,2]
[334675225,1723463441312,-517.205068,0.0002,2]
[334675226,1723463441324,-517.205068,0.0002,2]
[334675227,1723463441335,-776.747105,0.0002,2]
[334675228,1723463441347,-776.747105,0.0002,2]
[334675229,1723463441359,-181.915356,0.0002,2]
[334675230,1723463441370,-181.915356,0.0002,2]
[334675231,1723463441383,-478.119438,0.0002,2]
[334675232,1723463441395,-478.119438,0.0002,2]
[334675233,1723463441407,-281.520702,0.0002,2]
[334675234,1723463441419,-151.0,0.0002,2]
[334675235,1723463441431,-151.0,0.0002,2]
[334675236,1723463441443,-151.0,0.0002,2]
[334675237,1723463441453,-377.30891,0.0002,2]
[334675238,1723463441463,-377.30891,0.0002,2]
[334675239,1723463441473,-377.30891,0.0002,2]
[334675240,1723463441483,-377.30891,0.0002,2]
[334675241,1723463441493,-151.0,0.0002,2]
[334675242,1723463441503,-245.151344,0.0002,2]
[334675243,1723463441513,-245.151344,0.0002,2]
[334675244,1723463441713,-276.877716,0.0002,2]
[334675245,1723463441735,-276.877716,0.0002,2]
[334675246,1723463441747,-1703.818599,0.0002,2]
[334675247,1723463441758,-1703.818599,0.0002,2]
[334675248,1723463441767,-787.093623,0.0002,2]
[334675249,1723463441777,-156.61733743,0.00020171,2]
[334675250,1723463441787,-151.0,0.0002027,2]
[334675251,1723463441796,-892.598025,0.0002027,2]
[334675252,1723463441806,-892.598025,0.0002027,2]
[334675253,1723463441818,-517.205068,0.0002027,2]
[334675254,1723463441827,-517.205068,0.0002027,2]
[334675255,1723463441837,-308.1506605,0.00020274,2]
[334675256,1723463441847,-151.0,0.0002028,2]
[334675257,1723463441856,-151.0,0.0002028,2]
[334675258,1723463441867,-500.0,0.00020355,2]
[334675259,1723463441877,-150.112233,0.000204,3]
[334675260,1723463441887,-1413.0,0.00020449,2]
[334675261,1723463441896,-151.0,0.00020601,2]
[334675262,1723463441906,-341.109259,0.00020601,2]
[334675263,1723463441916,-228.057054,0.00020601,2]
[334675264,1723463441926,-228.057054,0.00020601,2]
[334675265,1723463441936,-341.109259,0.00020601,2]
[334675266,1723463441946,-776.747105,0.00020601,2]
[334675267,1723463441955,-776.747105,0.00020601,2]
[334675268,1723463441964,-181.915356,0.00020601,2]
[334675269,1723463441974,-181.915356,0.00020601,2]
[334675270,1723463441983,-478.119438,0.00020601,2]
[334675271,1723463441992,-478.119438,0.00020601,2]
[334675272,1723463442002,-151.0,0.00020601,2]
[334675273,1723463442023,-254.340572,0.00020601,2]
[334675274,1723463442033,-151.0,0.00020601,2]
[334675275,1723463442042,-377.30891,0.00020601,2]
[334675276,1723463442051,-377.30891,0.00020601,2]
[334675277,1723463442061,-151.0,0.00020601,2]
[334675278,1723463442071,-245.151344,0.00020601,2]
[334675279,1723463442080,-245.151344,0.00020601,2]
[334675280,1723463442089,-276.877716,0.00020601,2]
[334675281,1723463442099,-276.877716,0.00020601,2]
[334675282,1723463442108,-1703.818599,0.00020601,2]
[334675283,1723463442117,-1703.818599,0.00020601,2]
[334675284,1723463442127,-151.0,0.00020611,2]
[334675285,1723463442136,-290.773316,0.00020611,2]
[334675286,1723463442145,-243.21,0.00020611,2]
[334675287,1723463442155,-892.598025,0.00020611,2]
[334675288,1723463442165,-892.598025,0.00020611,2]
[334675289,1723463442174,-234.453678,0.00020611,2]
[334675290,1723463442184,-341.109259,0.00020611,2]
[334675291,1723463442193,-228.057054,0.00020611,2]
[334675292,1723463442203,-228.057054,0.00020611,2]
[334675293,1723463442213,-341.109259,0.00020611,2]
[334675294,1723463442223,-517.205068,0.00020611,2]
[334675295,1723463442232,-517.205068,0.00020611,2]
[334675296,1723463442242,-776.747105,0.00020611,2]
[334675297,1723463442251,-776.747105,0.00020611,2]
[334675298,1723463442261,-181.915356,0.00020611,2]
[334675299,1723463442271,-181.915356,0.00020611,2]
[334675300,1723463442280,-478.119438,0.00020611,2]
[334675301,1723463442290,-478.119438,0.00020611,2]
[334675302,1723463442299,-151.0,0.00020611,2]
[334675303,1723463442309,-787.093623,0.00020611,2]
[334675304,1723463442318,-160.0,0.00020679,5]
[334675305,1723463442327,-377.30891,0.00020691,2]
[334675306,1723463442337,-377.30891,0.00020691,2]
[334675307,1723463442347,-151.0,0.00020691,2]
[334675308,1723463442357,-245.151344,0.00020691,2]
[334675309,1723463442367,-245.151337,0.00020691,2]
[334675310,1723463442376,-276.877716,0.00020691,2]
[334675311,1723463442386,-276.877716,0.00020691,2]
[334675312,1723463442395,-1703.818599,0.00020691,2]
[334675313,1723463442409,-1703.8186,0.00020691,2]
[334675314,1723463442424,-151.0,0.000207,2]
[334675315,1723463442435,-151.779904,0.000207,2]
[334675316,1723463442445,-151.0,0.000207,2]
[334675317,1723463442455,-341.109259,0.00020701,2]
[334675318,1723463442467,-228.057054,0.00020701,2]
[334675319,1723463442476,-228.057054,0.00020701,2]
[334675320,1723463442486,-341.109259,0.00020701,2]
[334675321,1723463442495,-776.747105,0.00020701,2]
[334675322,1723463442506,-776.747105,0.00020701,2]
[334675323,1723463442515,-181.915356,0.00020701,2]
[334675324,1723463442524,-181.915356,0.00020701,2]
[334675325,1723463442534,-478.119438,0.00020701,2]
[334675326,1723463442544,-478.119438,0.00020701,2]
[334675327,1723463442554,-151.0,0.00020701,2]
[334675328,1723463442564,-1000.0,0.00020701,2]
[334675329,1723463442574,-1000.0,0.00020701,2]
[334675330,1723463442583,-1000.0,0.00020701,2]
[334675331,1723463442593,-1000.0,0.00020701,2]
[334675332,1723463442602,-1000.0,0.00020701,2]
[334675333,1723463442612,-1000.0,0.00020701,2]
[334675334,1723463442621,-1000.0,0.00020701,2]
[334675335,1723463442630,-1000.0,0.00020701,2]
[334675336,1723463442639,-1000.0,0.00020701,2]
[334675337,1723463442649,-1000.0,0.00020701,2]
[334675338,1723463442658,-1000.0,0.00020701,2]
[334675339,1723463442668,-1000.0,0.00020701,2]
[334675340,1723463442677,-1000.0,0.00020701,2]
[334675341,1723463442686,-1000.0,0.00020701,2]
[334675342,1723463442696,-1000.0,0.00020701,2]
[334675343,1723463442705,-1000.0,0.00020701,2]
[334675344,1723463442715,-1000.0,0.00020701,2]
[334675345,1723463442724,-1000.0,0.00020701,2]
[334675346,1723463442734,-1000.0,0.00020701,2]
[334675347,1723463442743,-1000.0,0.00020701,2]
[334675348,1723463442752,-1000.0,0.00020701,2]
[334675349,1723463442761,-1000.0,0.00020701,2]
[334675350,1723463442770,-1000.0,0.00020701,2]
[334675351,1723463442779,-1000.0,0.00020701,2]
[334675352,1723463442788,-1000.0,0.00020701,2]
[334675353,1723463442798,-1000.0,0.00020701,2]
[334675354,1723463442808,-1000.0,0.00020701,2]
[334675355,1723463442822,-1000.0,0.00020701,2]
[334675357,1723463442831,-1000.0,0.00020701,2]
[334675358,1723463442840,-1000.0,0.00020701,2]
[334675359,1723463442849,-1000.0,0.00020701,2]
[334675361,1723463442858,-1000.0,0.00020701,2]
[334675363,1723463442867,-1000.0,0.00020701,2]
[334675365,1723463442876,-1000.0,0.00020701,2]
[334675366,1723463442885,-1000.0,0.00020701,2]
[334675368,1723463442894,-1000.0,0.00020701,2]
[334675370,1723463442910,-1000.0,0.00020701,2]
[334675372,1723463442919,-1000.0,0.00020701,2]
[334675373,1723463442928,-1000.0,0.00020701,2]
[334675375,1723463442942,-1000.0,0.00020701,2]
[334675377,1723463442951,-1000.0,0.00020701,2]
[334675378,1723463442959,-1000.0,0.00020701,2]
[334675379,1723463442968,-1000.0,0.00020701,2]
[334675380,1723463442977,-1000.0,0.00020701,2]
[334675381,1723463442987,-1000.0,0.00020701,2]
[334675382,1723463442996,-1000.0,0.00020701,2]
[334675383,1723463443005,-1000.0,0.00020701,2]
[334675384,1723463443015,-1000.0,0.00020701,2]
[334675385,1723463443025,-1000.0,0.00020701,2]
[334675386,1723463443036,-1000.0,0.00020701,2]
[334675387,1723463443045,-1000.0,0.00020701,2]
[334675388,1723463443056,-1000.0,0.00020701,2]
[334675389,1723463443065,-1000.0,0.00020701,2]
[334675390,1723463443074,-1000.0,0.00020701,2]
[334675391,1723463443084,-1000.0,0.00020701,2]
[334675393,1723463443094,-1000.0,0.00020701,2]
[334675394,1723463443105,-1000.0,0.00020701,2]
[334675395,1723463443114,-1000.0,0.00020701,2]
[334675396,1723463443122,-1000.0,0.00020701,2]
[334675397,1723463443132,-1000.0,0.00020701,2]
[334675398,1723463443141,-1000.0,0.00020701,2]
[334675399,1723463443150,-1000.0,0.00020701,2]
[334675400,1723463443172,-1000.0,0.00020701,2]
[334675401,1723463443182,-1000.0,0.00020701,2]
[334675402,1723463443191,-1000.0,0.00020701,2]
[334675403,1723463443201,-1000.0,0.00020701,2]
[334675404,1723463443210,-1000.0,0.00020701,2]
[334675405,1723463443220,-1000.0,0.00020701,2]
[334675406,1723463443230,-1000.0,0.00020701,2]
[334675407,1723463443239,-1000.0,0.00020701,2]
[334675408,1723463443249,-1000.0,0.00020701,2]
[334675409,1723463443259,-1000.0,0.00020701,2]
[334675410,1723463443269,-306.06218,0.00020701,2]
[334675411,1723463443278,-151.0,0.00020711,2]
[334675412,1723463443288,-151.0,0.00020711,2]
[334675413,1723463443298,-892.598025,0.00020711,2]
[334675414,1723463443308,-892.598025,0.00020711,2]
[334675415,1723463443319,-517.205068,0.00020711,2]
[334675416,1723463443329,-517.205068,0.00020711,2]
[334675417,1723463443339,-151.0,0.00020721,2]
[334675418,1723463443349,-902.0,0.000208,2]
[334675419,1723463443358,-151.0,0.00020801,2]
[334675420,1723463443368,-892.598025,0.00020801,2]
[334675421,1723463443379,-892.598025,0.00020801,2]
[334675422,1723463443388,-517.205068,0.00020801,2]
[334675423,1723463443398,-517.205068,0.00020801,2]
[334675424,1723463443419,-167.796544,0.00020811,2]
[334675425,1723463443430,-151.0,0.00020811,2]
[334675426,1723463443439,-151.0,0.00020811,2]
[334675427,1723463443449,-151.0,0.00020811,2]
[334675428,1723463443459,-892.598025,0.00020811,2]
[334675429,1723463443468,-892.598025,0.00020811,2]
[334675430,1723463443478,-892.598025,0.00020811,2]
[334675431,1723463443489,-892.598025,0.00020811,2]
[334675432,1723463443499,-892.598025,0.00020811,2]
[334675433,1723463443508,-892.598025,0.00020811,2]
[334675434,1723463443517,-228.057054,0.00020811,2]
[334675435,1723463443527,-228.057054,0.00020811,2]
[334675436,1723463443538,-341.109259,0.00020811,2]
[334675437,1723463443547,-341.109259,0.00020811,2]
[334675438,1723463443557,-341.109259,0.00020811,2]
[334675439,1723463443567,-228.057054,0.00020811,2]
[334675440,1723463443576,-228.057054,0.00020811,2]
[334675441,1723463443586,-341.109259,0.00020811,2]
[334675442,1723463443595,-341.109259,0.00020811,2]
[334675443,1723463443604,-341.10925,0.00020811,2]
[334675444,1723463443614,-517.205068,0.00020811,2]
[334675445,1723463443624,-517.205068,0.00020811,2]
[334675446,1723463443634,-517.205068,0.00020811,2]
[334675447,1723463443643,-517.205068,0.00020811,2]
[334675448,1723463443653,-517.205068,0.00020811,2]
[334675449,1723463443670,-517.205068,0.00020811,2]
[334675450,1723463443679,-776.747105,0.00020811,2]
[334675451,1723463443689,-776.747105,0.00020811,2]
[334675452,1723463443699,-776.747105,0.00020811,2]
[334675453,1723463443709,-776.747103,0.00020811,2]
[334675454,1723463443720,-181.915356,0.00020811,2]
[334675455,1723463443730,-181.915356,0.00020811,2]
[334675456,1723463443740,-181.915356,0.00020811,2]
[334675457,1723463443750,-181.915354,0.00020811,2]
[334675458,1723463443760,-478.119438,0.00020811,2]
[334675459,1723463443770,-478.119438,0.00020811,2]
[334675460,1723463443780,-478.119438,0.00020811,2]
[334675461,1723463443789,-478.119438,0.00020811,2]
[334675462,1723463443799,-478.119438,0.00020811,2]
[334675463,1723463443810,-478.119433,0.00020811,2]
[334675464,1723463443820,-151.0,0.00020811,2]
[334675465,1723463443830,-151.0,0.00020811,2]
[334675466,1723463443839,-377.30891,0.00020811,2]
[334675467,1723463443848,-377.30891,0.00020811,2]
[334675468,1723463443858,-377.30891,0.00020811,2]
[334675469,1723463443867,-377.308913,0.00020811,2]
[334675470,1723463443876,-151.0,0.00020811,2]
[334675471,1723463443886,-485.04315376,0.0002082,2]
[334675472,1723463443896,-500.0,0.00020821,3]
[334675473,1723463443910,-500.0,0.00020821,3]
[334675474,1723463443919,-500.0,0.00020821,3]
[334675475,1723463443929,-568.52,0.00020821,3]
[334675476,1723463443939,-502.41031601,0.00020821,3]
[334675477,1723463443948,-505.64252159,0.00020821,3]
[334675478,1723463443958,-500.0,0.00020821,3]
[334675479,1723463443967,-500.0,0.00020821,3]
[334675480,1723463443977,-500.0,0.00020821,3]
[334675481,1723463443987,-500.0,0.00020821,3]
[334675482,1723463443997,-500.0,0.00020821,3]
[334675483,1723463444006,-512.17168616,0.00020821,3]
[334675484,1723463444016,-500.0,0.00020821,3]
[334675485,1723463444026,-509.53757874,0.00020821,3]
[334675486,1723463444036,-279.59967043,0.00020821,3]
[334675487,1723463444045,-500.0,0.00020821,3]
[334675488,1723463444055,-500.0,0.00020821,3]
[334675489,1723463444066,-504.51658871,0.00020821,3]
[334675490,1723463444075,-505.0,0.00020821,3]
[334675491,1723463444085,-512.53553775,0.00020821,3]
[334675492,1723463444094,-518.07078944,0.00020821,3]
[334675493,1723463444103,-500.0,0.00020821,3]
[334675494,1723463444113,-500.0,0.00020821,3]
[334675495,1723463444123,-500.0,0.00020821,3]
[334675496,1723463444132,-500.0,0.00020821,3]
[334675497,1723463444142,-500.0,0.00020821,3]
[334675498,1723463444151,-500.0,0.00020821,3]
[334675499,1723463444167,-500.0,0.00020821,3]
[334675500,1723463444177,-500.0,0.00020821,3]
[334675501,1723463444187,-479.47739237,0.00020821,3]
[334675502,1723463444196,-500.0,0.00020821,3]
[334675503,1723463444205,-501.7475152,0.00020821,3]
[334675504,1723463444215,-501.48143873,0.00020821,3]
[334675505,1723463444225,-502.07607423,0.00020821,3]
[334675506,1723463444234,-151.0,0.00020821,2]
[334675507,1723463444244,-500.0,0.00020821,3]
[334675508,1723463444254,-511.68645328,0.00020821,3]
[334675509,1723463444263,-500.0,0.00020821,3]
[334675510,1723463444273,-500.0,0.00020821,3]
[334675511,1723463444282,-500.0,0.00020821,3]
[334675512,1723463444291,-500.0,0.00020821,3]
[334675513,1723463444301,-506.08398547,0.00020821,3]
[334675514,1723463444311,-1307.66,0.00020821,3]
[334675515,1723463444320,-505.79921518,0.00020821,3]
[334675516,1723463444330,-500.0,0.00020821,3]
[334675517,1723463444339,-500.0,0.00020821,3]
[334675518,1723463444349,-679.91,0.00020821,3]
[334675519,1723463444358,-500.0,0.00020821,3]
[334675520,1723463444368,-500.0,0.00020821,3]
[334675521,1723463444379,-500.0,0.00020821,3]
[334675522,1723463444389,-502.07461869,0.00020821,3]
[334675523,1723463444398,-500.0,0.00020821,3]
[334675524,1723463444413,-500.18536811,0.00020821,2]
[334675525,1723463444423,-500.0,0.00020821,3]
[334675526,1723463444432,-892.598025,0.00020821,2]
[334675527,1723463444442,-500.0,0.00020821,3]
[334675528,1723463444451,-892.598025,0.00020821,2]
[334675529,1723463444461,-500.0,0.00020821,3]
[334675530,1723463444470,-343.6593187,0.00020821,3]
[334675531,1723463444480,-500.0,0.00020821,3]
[334675532,1723463444489,-500.0,0.00020821,3]
[334675533,1723463444498,-500.0,0.00020821,3]
[334675534,1723463444508,-875.38,0.00020821,3]
[334675535,1723463444517,-286.13883737,0.00020821,3]
[334675536,1723463444528,-500.0,0.00020821,3]
[334675537,1723463444537,-500.0,0.00020821,3]
[334675538,1723463444547,-500.0,0.00020821,3]
[334675539,1723463444556,-502.97989153,0.00020821,3]
[334675540,1723463444566,-500.0,0.00020821,3]
[334675541,1723463444575,-500.0,0.00020821,3]
[334675542,1723463444585,-500.0,0.00020821,3]
[334675543,1723463444594,-500.0,0.00020821,3]
[334675544,1723463444603,-500.0,0.00020821,3]
[334675545,1723463444613,-500.0,0.00020821,3]
[334675546,1723463444622,-500.0,0.00020821,3]
[334675547,1723463444631,-297.51445606,0.00020821,3]
[334675548,1723463444641,-514.91161468,0.00020821,3]
[334675549,1723463444651,-500.0,0.00020821,3]
[334675550,1723463444664,-500.0,0.00020821,3]
[334675551,1723463444674,-500.0,0.00020821,3]
[334675552,1723463444683,-500.0,0.00020821,3]
[334675553,1723463444692,-1190.43,0.00020821,3]
[334675554,1723463444701,-504.46139654,0.00020821,3]